bitfinex-derivatives/quotes_ETHF0:USTF0_20250220
["timestamp","ask_amount","ask_price","bid_price","bid_amount"]
[1740079167681,0.72522,2757.2,2756.9,0.72528]
[1740079167875,3.2078,2757.5,2756.5,0.5771]
[1740079168276,3.2078,2757.5,2757.2,0.72519]
[1740079168580,0.72516,2757.4,2756.9,0.72527]
[1740079168770,3.93295,2757.5,2757.0,0.72525]
[1740079168976,3.2078,2757.5,2756.8,3.2078]
[1740079169376,3.93295,2757.5,2757.0,0.72525]
[1740079169583,0.72516,2757.4,2757.0,0.72525]
[1740079169976,0.72518,2757.3,2756.9,0.72527]
[1740079170277,0.72517,2757.4,2757.0,0.72526]
[1740079170479,3.2078,2757.5,2757.0,0.72526]
[1740079170784,3.2078,2757.5,2756.8,3.2078]
[1740079170975,0.72518,2757.4,2756.8,3.2078]
[1740079171176,3.2078,2757.5,2756.8,3.2078]
[1740079171582,3.93293,2757.5,2757.1,0.72522]
[1740079171881,0.72517,2757.4,2757.0,0.72524]
[1740079172082,0.72518,2757.4,2757.0,0.72524]
[1740079172282,3.2078,2757.5,2756.8,3.2078]
[1740079172477,3.2078,2757.5,2757.3,0.72517]
[1740079172683,0.5902,2758.3,2757.4,3.2078]
[1740079172884,0.07742131,2759.2,2758.7,0.72481]
[1740079172885,0.27511128,2758.8,2758.7,0.72481]
[1740079173178,0.27511128,2758.8,2758.7,40.8]
[1740079173385,0.27511128,2758.8,2758.7,41.52481]
[1740079173587,0.07742131,2759.2,2758.7,40.8]
[1740079174677,0.80211131,2759.2,2758.7,41.52481]
[1740079174877,0.07742131,2759.2,2758.7,40.8]
[1740079175081,0.72478,2758.9,2758.7,40.8]
[1740079175385,0.72478,2758.9,2758.6,3.2078]
[1740079175386,0.07742131,2759.2,2758.6,3.2078]
[1740079175980,0.07742131,2759.2,2758.9,3.2078]
[1740079176279,0.07742131,2759.2,2759.1,0.72471]
[1740079176879,0.07742131,2759.2,2759.1,41.52471]
[1740079178180,0.07742131,2759.2,2758.9,3.2078]
[1740079178380,0.07742131,2759.2,2758.6,0.554]
[1740079178381,0.07742131,2759.2,2758.6,3.2078]
[1740079178578,0.72481,2758.7,2758.6,3.2078]
[1740079179180,3.2078,2759.1,2758.4,0.55]
[1740079179690,2.785,2759.0,2758.4,0.55]
[1740079179886,0.72484,2758.6,2758.4,0.55]
[1740079180273,2.785,2759.0,2758.4,0.55]
[1740079180878,0.72487,2758.5,2758.4,0.55]
[1740079181283,3.2078,2758.8,2758.4,0.55]
[1740079181484,2.785,2759.0,2758.4,0.55]
[1740079181685,3.2078,2758.6,2757.7,3.7737]
[1740079181881,3.2078,2758.2,2757.7,3.7737]
[1740079182188,0.72504,2757.9,2757.7,3.7737]
[1740079182576,3.2078,2758.2,2757.7,3.7737]
[1740079182783,0.72503,2757.9,2757.6,0.0054485]
[1740079183083,0.72499,2758.1,2757.6,0.7305385]
[1740079183878,3.2078,2758.2,2757.7,0.72508]
[1740079183879,0.725,2758.0,2757.7,0.72508]
[1740079184084,3.2078,2758.2,2757.7,0.72507]
[1740079184085,0.72499,2758.1,2757.7,0.72507]
[1740079184484,0.725,2758.1,2757.6,0.0054485]
[1740079184684,0.5539,2758.4,2757.6,0.0054485]
[1740079184884,0.72498,2758.1,2757.7,0.72506]
[1740079185085,0.72498,2758.1,2757.7,3.2078]
[1740079185281,0.5539,2758.4,2757.7,3.2078]
[1740079185482,3.2078,2758.2,2757.6,0.0054485]
[1740079185679,0.72505,2757.9,2757.6,0.0054485]
[1740079185884,3.2078,2758.2,2757.6,0.0054485]
[1740079186080,0.72503,2757.9,2757.6,0.0054485]
[1740079186282,3.2078,2758.2,2757.6,0.0054485]
[1740079187282,0.72503,2757.9,2757.6,0.7305485]
[1740079188004,0.72508,2757.7,2757.6,0.0054485]
[1740079189387,0.72508,2757.7,2756.8,3.7701]
[1740079189388,2.753,2757.7,2757.1,3.2078]
[1740079189694,0.72511,2757.6,2757.3,0.72517]
[1740079189895,2.758,2757.7,2757.1,3.2078]
[1740079190496,0.72514,2757.5,2757.2,0.72521]
[1740079190794,0.72514,2757.5,2757.3,0.72518]
[1740079190997,2.76340966,2757.7,2757.2,0.7252]
[1740079191199,0.72515,2757.5,2757.2,0.7252]
[1740079191395,0.72515,2757.5,2757.2,0.72518]
[1740079192199,2.76340966,2757.7,2757.1,3.21323685]
[1740079192595,2.76340966,2757.7,2757.4,3.2078]
[1740079192596,0.00540966,2757.7,2757.4,3.2078]
[1740079192800,0.00540966,2757.7,2757.6,0.7251]
[1740079195095,0.00540966,2757.7,2757.4,3.2078]
[1740079195298,0.72513,2757.5,2757.4,3.93293]
[1740079196100,0.72513,2757.5,2757.4,3.2078]
[1740079196298,0.00540966,2757.7,2757.4,3.2078]
[1740079196495,0.72511,2757.6,2757.4,3.93294]
[1740079196802,0.73050966,2757.7,2757.4,3.2078]
[1740079196993,0.00540966,2757.7,2757.4,3.2078]
[1740079197193,0.72512,2757.6,2757.5,0.72512]
[1740079197604,0.00540966,2757.7,2757.4,3.2078]
[1740079197789,0.72511,2757.6,2757.5,0.72511]
[1740079199507,0.73049966,2757.7,2757.6,0.7251]
[1740079199697,0.00540966,2757.7,2757.6,0.7251]
[1740079201102,0.72513,2757.5,2757.4,3.2078]
[1740079201908,0.72513,2757.5,2757.4,3.93296]
[1740079202105,0.72513,2757.5,2757.2,0.5936]
[1740079202303,0.72518,2757.3,2757.2,0.5936]
[1740079202809,0.00540966,2757.7,2757.2,0.5936]
[1740079203011,0.00540966,2757.7,2757.6,0.7251]
[1740079203507,0.73048966,2757.7,2757.6,0.7251]
[1740079203904,0.00540966,2757.7,2757.6,0.7251]
[1740079204509,2.717,2758.4,2757.6,6.0]
[1740079204712,0.72496,2758.2,2758.1,0.72496]
[1740079205208,2.717,2758.6,2758.1,40.8]
[1740079205509,0.5529,2758.9,2758.5,3.2078]
[1740079205808,0.5529,2758.9,2758.2,3.2078]
[1740079206209,0.72479,2758.8,2758.2,3.2078]
[1740079206408,0.72479,2758.8,2758.6,0.72483]
[1740079206609,0.5529,2758.9,2758.5,0.72485]
[1740079206808,0.5529,2758.9,2758.2,3.2078]
[1740079207010,0.5529,2758.9,2758.3,0.72491]
[1740079207204,3.2078,2758.8,2758.2,3.2078]
[1740079207514,0.72488,2758.5,2758.2,3.93273]
[1740079207705,3.2078,2758.8,2758.2,3.2078]
[1740079207902,0.72487,2758.5,2758.3,0.72492]
[1740079208112,3.2078,2758.8,2758.2,3.2078]
[1740079208512,0.72489,2758.4,2758.2,3.93274]
[1740079208708,0.72492,2758.3,2758.2,3.2078]
[1740079209012,0.72497,2758.2,2757.9,0.72502]
[1740079209215,3.2078,2758.5,2757.7,3.7647]
[1740079209412,0.72495,2758.2,2757.9,0.72501]
[1740079209609,3.2078,2758.5,2757.7,3.7647]
[1740079209809,3.2078,2758.5,2758.0,3.2078]
[1740079210205,3.2078,2758.5,2757.7,3.7647]
[1740079210409,0.7249,2758.4,2758.2,0.72493]
[1740079210604,0.7249,2758.4,2757.7,5.57737]
[1740079210605,0.72493,2758.3,2758.1,0.72497]
[1740079210806,3.2078,2758.5,2758.0,3.2078]
[1740079211011,3.2078,2758.5,2758.4,0.72489]
[1740079211214,3.2078,2758.8,2758.0,3.2078]
[1740079211418,3.2078,2758.5,2758.0,3.2078]
[1740079211615,1.81244,2758.1,2757.4,3.93294]
[1740079211925,1.81264,2757.8,2757.1,0.00543685]
[1740079212120,3.2078,2757.9,2757.1,0.00543685]
[1740079212316,3.2078,2757.9,2757.3,3.2078]
[1740079212513,3.2078,2757.9,2757.6,0.72508]
[1740079212820,0.72507,2757.8,2757.5,0.72512]
[1740079213221,0.72508,2757.7,2757.5,0.72512]
[1740079213410,3.2078,2757.9,2757.5,0.72512]
[1740079213616,3.93285,2757.9,2757.6,0.7251]
[1740079213821,0.72506,2757.8,2757.6,0.7251]
[1740079214824,0.72504,2757.9,2757.3,3.2078]
[1740079215022,0.72504,2757.9,2757.7,0.72507]
[1740079215323,0.72504,2757.9,2757.4,0.72515]
[1740079215324,3.2078,2757.9,2757.4,0.72515]
[1740079215626,0.72507,2757.8,2757.5,0.72512]
[1740079215826,3.2078,2757.9,2757.3,3.2078]
[1740079216516,3.2078,2757.9,2757.7,0.72507]
[1740079217117,3.2078,2757.9,2757.3,3.2078]
[1740079217320,0.72509,2757.7,2757.5,0.7251]
[1740079217522,0.72507,2757.8,2757.5,0.7251]
[1740079217719,0.72507,2757.8,2757.3,3.2078]
[1740079218120,0.567,2758.1,2757.4,1.8129]
[1740079218332,0.567,2758.1,2757.3,3.2078]
[1740079218522,0.72504,2757.9,2757.6,0.72508]
[1740079218724,0.567,2758.1,2757.3,5.02074]
[1740079218924,0.567,2758.1,2757.7,0.72506]
[1740079219227,0.567,2758.1,2757.3,3.2078]
[1740079219928,0.72502,2757.9,2757.7,0.72506]
[1740079220124,0.567,2758.1,2757.3,5.02073]
[1740079220324,0.72504,2757.9,2757.7,0.72507]
[1740079220724,0.72501,2758.0,2757.4,0.72516]
[1740079220923,0.567,2758.1,2757.3,3.2078]
[1740079220924,0.72504,2757.9,2757.7,0.72507]
[1740079221126,0.72504,2757.9,2757.8,0.72505]
[1740079221423,0.567,2758.1,2757.6,3.2078]
[1740079221723,3.2078,2758.2,2757.7,1.81265]
[1740079221925,3.2078,2758.2,2758.1,0.72497]
[1740079222422,3.2078,2758.2,2758.1,41.52497]
[1740079222624,0.5709,2758.7,2758.1,41.52497]
[1740079223129,0.5709,2758.7,2758.5,0.72486]
[1740079223331,0.5709,2758.7,2758.1,41.52497]
[1740079223332,0.5709,2758.7,2758.6,0.72484]
[1740079223523,1.88915131,2759.2,2758.3,5.02005]
[1740079223524,3.28522131,2759.2,2758.3,5.02005]
[1740079223725,5.98322131,2759.2,2758.7,0.72479]
[1740079223928,0.72476,2759.0,2758.8,0.72479]
[1740079224225,5.98322131,2759.2,2758.8,0.72478]
[1740079224424,0.72472,2759.1,2758.7,0.00543685]
[1740079224625,0.72472,2759.1,2758.9,0.72475]
[1740079224924,0.07742131,2759.2,2758.7,0.00543685]
[1740079225431,0.07742131,2759.2,2759.1,0.72471]
[1740079227130,0.07742131,2759.2,2759.1,41.52471]
[1740079229337,0.07742131,2759.2,2759.0,0.5812]
[1740079229531,0.07742131,2759.2,2759.1,0.72471]
[1740079229840,0.80210131,2759.2,2759.1,0.72471]
[1740079230023,0.07742131,2759.2,2758.9,3.93256]
[1740079230230,0.07742131,2759.2,2758.9,3.93255]
[1740079230425,0.72473,2759.1,2758.9,3.2078]
[1740079230635,0.07742131,2759.2,2758.9,3.2078]
[1740079230831,0.07742131,2759.2,2759.0,0.72473]
[1740079231034,0.80212131,2759.2,2759.0,0.72473]
[1740079231939,0.07742131,2759.2,2759.1,0.72471]
[1740079234133,0.80210131,2759.2,2758.9,3.2078]
[1740079234327,0.07742131,2759.2,2758.9,3.2078]
[1740079234531,0.07742131,2759.2,2759.1,0.72471]
[1740079234742,0.07742131,2759.2,2758.9,3.2078]
[1740079235043,0.07742131,2759.2,2759.1,0.72471]
[1740079236333,1.31e-06,2759.2,2759.1,6.72471]
[1740079236535,1.31e-06,2759.2,2759.1,3.38771]
[1740079237735,1.31e-06,2759.2,2759.1,9.38771]
[1740079238842,1.31e-06,2759.2,2759.1,50.18587995]
[1740079239341,3.2078,2760.5,2759.4,1.81152]
[1740079239544,0.72444,2760.2,2760.1,0.72443]
[1740079239836,0.5359,2760.6,2759.9,3.2078]
[1740079240039,3.2078,2760.8,2760.7,0.72429]
[1740079240240,0.01578305,2760.9,2760.6,3.2078]
[1740079240742,0.01578305,2760.9,2760.5,0.00543685]
[1740079240943,0.74003305,2760.9,2760.6,0.72431]
[1740079241241,0.01578305,2760.9,2760.5,0.00543685]
[1740079241538,0.72432,2760.6,2760.5,0.00543685]
[1740079241847,0.72429,2760.7,2760.5,0.72976685]
[1740079242137,0.01578305,2760.9,2760.5,0.00543685]
[1740079242335,0.72431,2760.7,2760.5,0.00543685]
[1740079242535,0.01578305,2760.9,2760.5,0.00543685]
[1740079242930,0.72428,2760.8,2760.5,0.72975685]
[1740079243137,0.01578305,2760.9,2760.6,0.7243]
[1740079243334,0.01578305,2760.9,2760.5,0.00543685]
[1740079243939,0.74003305,2760.9,2760.6,0.7243]
[1740079244140,0.01578305,2760.9,2760.5,0.00543685]
[1740079244340,0.72427,2760.8,2760.5,0.72976685]
[1740079244541,0.01578305,2760.9,2760.5,0.00543685]
[1740079244747,0.01578305,2760.9,2760.7,0.72428]
[1740079245043,0.74003305,2760.9,2760.6,0.72429]
[1740079245437,0.01578305,2760.9,2760.6,3.2078]
[1740079245743,0.74003305,2760.9,2760.6,3.93211]
[1740079246141,0.01578305,2760.9,2760.6,3.2078]
[1740079246441,0.72427,2760.8,2760.6,3.2078]
[1740079246745,0.01578305,2760.9,2760.6,3.2078]
[1740079247139,0.74002305,2760.9,2760.6,3.9321]
[1740079247548,0.01578305,2760.9,2760.6,3.9321]
[1740079247738,0.01578305,2760.9,2760.6,3.2078]
[1740079247938,0.72427,2760.8,2760.6,3.2078]
[1740079248137,0.01578305,2760.9,2760.6,3.2078]
[1740079248347,0.01578305,2760.9,2760.6,3.93211]
[1740079248543,0.01578305,2760.9,2760.7,0.72427]
[1740079248746,0.74003305,2760.9,2760.6,3.9321]
[1740079248939,0.01578305,2760.9,2760.6,3.9321]
[1740079249146,0.01578305,2760.9,2760.5,0.00543685]
[1740079249341,0.72432,2760.6,2760.5,0.00543685]
[1740079250247,3.93212,2760.6,2760.5,0.00543685]
[1740079250644,3.93212,2760.6,2759.9,3.2078]
[1740079250645,11.8668,2760.6,2759.9,3.2078]
[1740079250955,0.72451,2759.9,2759.7,0.72454]
[1740079251344,5.01873,2760.4,2759.5,40.8]
[1740079251542,0.72446,2760.1,2759.9,0.72449]
[1740079251846,0.5867,2760.5,2760.0,3.2078]
[1740079252142,0.72443,2760.2,2759.7,3.21323685]
[1740079252547,0.72443,2760.2,2759.9,0.72448]
[1740079252748,0.00543685,2760.3,2759.7,3.21323685]
[1740079253049,0.7245,2760.0,2759.7,0.72997685]
[1740079253448,0.7245,2760.0,2759.7,0.00543685]
[1740079253651,0.72443,2760.2,2760.0,0.72446]
[1740079253844,0.00543685,2760.3,2759.7,3.21323685]
[1740079254039,0.72984685,2760.3,2759.7,3.21323685]
[1740079254261,0.72443,2760.2,2760.0,0.72447]
[1740079254750,0.72445,2760.1,2759.9,0.72449]
[1740079254953,3.2078,2760.2,2759.7,0.00543685]
[1740079255254,0.72452,2759.9,2759.7,0.72998685]
[1740079255451,3.2078,2760.2,2759.7,0.00543685]
[1740079255653,3.2078,2760.2,2759.8,0.72453]
[1740079255865,0.72449,2760.0,2759.8,0.72453]
[1740079256466,0.72453,2759.8,2759.7,0.00543685]
[1740079256659,3.93233,2759.8,2759.7,0.00543685]
[1740079260860,4.48003,2759.8,2759.7,0.00543685]
[1740079262171,3.2078,2759.8,2759.7,0.00543685]
[1740079262372,3.93233,2759.8,2759.7,0.00543685]
[1740079262673,3.2078,2759.8,2759.7,0.72998685]
[1740079263371,0.72448,2760.0,2759.8,0.72451]
[1740079263572,2.95443685,2760.3,2759.9,0.72447]
[1740079263771,2.95443685,2760.3,2759.7,3.21323685]
[1740079263975,2.95443685,2760.3,2760.0,0.72447]
[1740079264168,2.95443685,2760.3,2759.7,45.82456685]
[1740079264372,0.72446,2760.1,2759.7,44.01323685]
[1740079264574,0.72446,2760.1,2759.9,0.72448]
[1740079264870,0.72447,2760.0,2759.9,0.72448]
[1740079265271,2.95443685,2760.3,2759.9,0.72448]
[1740079265467,0.72447,2760.0,2759.9,0.72448]
[1740079265679,2.649,2760.1,2759.7,0.00543685]
[1740079265878,0.72453,2759.8,2759.7,0.00543685]
[1740079266474,0.5454,2759.9,2759.7,0.00543685]
[1740079266775,0.72444,2760.2,2759.9,0.72449]
[1740079266977,0.72446,2760.1,2759.8,0.72452]
[1740079267377,0.72443,2760.2,2760.0,0.72447]
[1740079267672,2.95443685,2760.3,2759.7,0.00543685]
[1740079267878,0.72453,2759.8,2759.7,0.00543685]
[1740079269382,0.72453,2759.8,2758.9,3.2078]
[1740079269383,0.7247,2759.2,2758.9,3.2078]
[1740079269682,2.657,2759.5,2758.9,3.93254]
[1740079269881,0.72471,2759.1,2758.9,3.93254]
[1740079270077,2.657,2759.5,2758.9,3.2078]
[1740079270273,3.2078,2759.3,2758.8,0.538]
[1740079270478,3.2078,2759.3,2758.9,0.00543685]
[1740079270479,0.72475,2759.0,2758.9,0.00543685]
[1740079274174,3.93255,2759.0,2758.9,0.00543685]
[1740079275377,0.72496,2758.2,2758.0,2.927]
[1740079275580,5.8508,2758.4,2757.9,0.5717]
[1740079275779,5.8518,2758.4,2757.9,1.29671]
[1740079275981,0.72496,2758.2,2757.9,1.29671]
[1740079276277,2.644,2758.4,2757.9,1.29671]
[1740079276484,0.00543685,2758.3,2757.8,0.00543685]
[1740079276778,0.72498,2758.1,2757.8,0.00543685]
[1740079277483,0.72498,2758.1,2757.9,0.72502]
[1740079277683,0.72497,2758.2,2757.9,0.72501]
[1740079277878,0.72498,2758.1,2757.9,0.72501]
[1740079278078,0.00543685,2758.3,2757.9,0.72501]
[1740079278380,0.72496,2758.2,2757.9,0.72502]
[1740079278582,0.00543685,2758.3,2758.2,0.72495]
[1740079279988,0.00543685,2758.3,2758.1,0.72495]
[1740079280183,0.00543685,2758.3,2758.2,0.72495]
[1740079280379,0.00543685,2758.3,2758.0,3.2078]
[1740079280682,0.72497,2758.1,2758.0,3.2078]
[1740079281077,2.647,2758.2,2757.8,0.00543685]
[1740079281376,0.72502,2757.9,2757.8,0.00543685]
[1740079281976,0.5775,2758.1,2757.8,0.00543685]
[1740079282285,5.8548,2758.2,2758.1,0.72497]
[1740079282286,3.2078,2758.2,2758.1,0.72497]
[1740079282475,2.65843685,2758.3,2758.2,0.72495]
[1740079282883,0.72496,2758.2,2758.0,0.72499]
[1740079283383,0.72498,2758.1,2757.9,0.72502]
[1740079283578,2.65843685,2758.3,2757.8,0.00543685]
[1740079283880,0.72498,2758.1,2757.9,0.72502]
[1740079284077,2.65843685,2758.3,2757.8,0.73047685]
[1740079284078,0.72502,2758.0,2757.8,0.73047685]
[1740079284479,2.65843685,2758.3,2757.8,0.00543685]
[1740079284869,2.65843685,2758.3,2757.8,0.73046685]
[1740079285274,0.725,2758.0,2757.8,0.73046685]
[1740079286678,0.72498,2758.1,2757.9,0.72501]
[1740079286875,2.65843685,2758.3,2757.9,0.72502]
[1740079287075,0.72499,2758.1,2757.9,0.72502]
[1740079287283,2.65843685,2758.3,2757.9,0.72502]
[1740079287583,0.72495,2758.2,2758.0,0.72499]
[1740079287881,0.72497,2758.1,2758.0,0.72499]
[1740079288082,0.72497,2758.1,2757.9,0.72501]
[1740079288980,2.65843685,2758.3,2758.0,0.725]
[1740079289578,0.00543685,2758.3,2758.2,0.72495]
[1740079290784,2.633,2758.9,2758.1,0.5549]
[1740079290980,2.633,2759.1,2758.4,3.2078]
[1740079291385,0.72478,2758.9,2758.4,3.2078]
[1740079291682,2.633,2759.1,2758.4,3.2078]
[1740079292080,0.00543685,2759.0,2758.9,0.72476]
[1740079293274,0.00543685,2759.0,2758.7,3.2078]
[1740079293582,0.73018685,2759.0,2758.8,0.72479]
[1740079294187,0.00543685,2759.0,2758.8,0.72479]
[1740079294690,0.00543685,2759.0,2758.9,0.72476]
[1740079294980,0.00543685,2759.0,2758.7,3.2078]
[1740079295384,0.00543685,2759.0,2758.9,0.72476]
[1740079295884,0.73017685,2759.0,2758.8,0.72478]
[1740079296286,0.73017685,2759.0,2758.8,0.72477]
[1740079296483,0.00543685,2759.0,2758.9,0.72476]
[1740079297382,0.00543685,2759.0,2758.7,3.2078]
[1740079297583,0.72477,2758.9,2758.7,3.93261]
[1740079297887,0.72481,2758.8,2758.6,0.72483]
[1740079298391,0.00543685,2759.0,2758.7,0.7248]
[1740079298585,0.72479,2758.9,2758.7,0.7248]
[1740079298884,0.72478,2758.9,2758.7,0.7248]
[1740079299195,0.73018685,2759.0,2758.5,1.81218]
[1740079299389,0.73018685,2759.0,2758.8,0.72477]
[1740079299790,0.72476,2758.9,2758.8,0.72477]
[1740079300290,0.00543685,2759.0,2758.4,3.7675]
[1740079300485,0.73018685,2759.0,2758.8,0.72478]
[1740079300685,0.73018685,2759.0,2758.5,1.81216]
[1740079300884,0.73018685,2759.0,2758.8,0.72478]
[1740079301085,0.00543685,2759.0,2758.4,3.7675]
[1740079301486,0.00543685,2759.0,2758.8,0.72478]
[1740079301487,0.73019685,2759.0,2758.8,0.72478]
[1740079301683,0.00543685,2759.0,2758.4,5.5797]
[1740079301888,0.72477,2758.9,2758.4,5.5797]
[1740079302088,0.00543685,2759.0,2758.4,3.7675]
[1740079302390,0.73018685,2759.0,2758.8,0.72476]
[1740079303390,0.72476,2758.9,2758.8,0.72476]
[1740079303592,0.72476,2758.9,2758.7,0.72479]
[1740079303895,0.73018685,2759.0,2758.8,0.72477]
[1740079304192,0.7248,2758.8,2758.4,3.7675]
[1740079304395,0.00543685,2759.0,2758.4,3.7675]
[1740079304694,0.00543685,2759.0,2758.7,0.7248]
[1740079304888,0.00543685,2759.0,2758.4,3.7675]
[1740079305084,0.72481,2758.8,2758.6,0.72481]
[1740079305290,0.72481,2758.8,2758.4,3.7675]
[1740079305598,0.72478,2758.9,2758.8,0.72479]
[1740079305989,0.7248,2758.8,2758.7,0.72481]
[1740079306190,0.00543685,2759.0,2758.4,5.57973]
[1740079306493,0.72477,2758.9,2758.8,0.72477]
[1740079306689,0.00543685,2759.0,2758.9,0.72476]
[1740079307091,0.72456,2759.7,2758.8,1.81198]
[1740079307292,0.72457,2759.7,2759.5,0.72459]
[1740079307492,0.72455,2759.7,2759.5,0.72459]
[1740079307693,2.614,2759.8,2759.5,0.72459]
[1740079307998,0.72455,2759.7,2759.5,0.72459]
[1740079308189,0.72458,2759.6,2759.5,0.72459]
[1740079308385,0.72457,2759.7,2759.5,0.72459]
[1740079308586,2.614,2759.8,2759.5,0.7246]
[1740079308892,0.72458,2759.6,2759.5,0.7246]
[1740079309193,0.72457,2759.7,2759.5,0.7246]
[1740079309991,0.72457,2759.7,2759.5,0.72458]
[1740079311100,2.614,2759.8,2759.5,0.72458]
[1740079311303,0.72457,2759.7,2759.5,0.72458]
[1740079311596,0.00543685,2759.9,2759.8,0.72453]
[1740079312293,0.72994685,2759.9,2759.7,0.72454]
[1740079312501,0.72453,2759.8,2759.6,0.72457]
[1740079313500,0.72454,2759.8,2759.4,0.00543685]
[1740079313794,0.72454,2759.8,2759.6,0.72457]
[1740079314095,0.72459,2759.6,2759.4,0.73005685]
[1740079314295,0.72456,2759.7,2759.5,0.72459]
[1740079314602,0.00543685,2759.9,2759.4,0.00543685]
[1740079314994,0.58093685,2759.9,2759.4,0.00543685]
[1740079315205,0.72454,2759.8,2759.6,0.72456]
[1740079315699,0.72458,2759.7,2759.5,0.7246]
[1740079316002,0.58093685,2759.9,2759.4,0.00543685]
[1740079316299,0.72456,2759.7,2759.5,0.7246]
[1740079316905,0.58093685,2759.9,2759.4,0.00543685]
[1740079317094,0.72455,2759.7,2759.5,0.7246]
[1740079317400,0.58093685,2759.9,2759.4,0.00543685]
[1740079317601,0.72459,2759.6,2759.4,0.73005685]
[1740079317803,2.598,2759.7,2759.4,0.00543685]
[1740079318200,0.72459,2759.6,2759.4,0.73005685]
[1740079318503,3.32256,2759.7,2759.5,0.72459]
[1740079318900,2.598,2759.7,2759.4,0.00543685]
[1740079319099,2.598,2759.7,2759.6,0.72458]
[1740079321004,2.598,2759.7,2759.4,0.00543685]
[1740079321502,2.598,2759.7,2759.6,0.72458]
[1740079321704,3.32255,2759.7,2759.6,0.72458]
[1740079322096,0.58093685,2759.9,2759.5,0.72459]
[1740079322295,0.72458,2759.6,2759.5,0.72459]
[1740079322493,0.72454,2759.8,2759.5,0.72459]
[1740079322807,0.72454,2759.8,2759.4,0.00543685]
[1740079323104,0.72454,2759.8,2759.7,0.72455]
[1740079323704,3.89243685,2759.9,2759.8,0.72453]
[1740079324103,3.89243685,2759.9,2759.7,0.72454]
[1740079324104,0.72453,2759.8,2759.7,0.72454]
[1740079325004,3.16793685,2759.9,2759.4,1.81700685]
[1740079325305,3.89244685,2759.9,2759.7,0.72454]
[1740079325506,3.89245685,2759.9,2759.4,1.81700685]
[1740079325709,3.16793685,2759.9,2759.4,0.00543685]
[1740079325906,0.72453,2759.8,2759.4,0.00543685]
[1740079326099,3.16793685,2759.9,2759.7,0.72455]
[1740079326305,0.72453,2759.8,2759.7,0.72453]
[1740079326607,3.89245685,2759.9,2759.7,0.72453]
[1740079326802,3.16793685,2759.9,2759.4,1.81700685]
[1740079327111,0.72453,2759.8,2759.7,0.72454]
[1740079328108,3.16793685,2759.9,2759.4,0.00543685]
[1740079328310,0.72454,2759.8,2759.7,0.72454]
[1740079329909,3.16793685,2759.9,2759.6,0.72457]
[1740079330111,0.72453,2759.8,2759.7,0.72454]
[1740079331608,3.89244685,2759.9,2759.8,0.72453]
[1740079332403,0.72453,2759.8,2759.7,0.72453]
[1740079332604,3.16793685,2759.9,2759.4,1.81701685]
[1740079332806,0.72454,2759.8,2759.7,0.72453]
[1740079333407,3.16793685,2759.9,2759.4,1.81701685]
[1740079333707,0.72453,2759.8,2759.7,0.72454]
[1740079333904,3.89245685,2759.9,2759.8,0.72453]
[1740079334507,3.16793685,2759.9,2759.5,1.81152]
[1740079334712,0.58093685,2759.9,2759.4,0.00543685]
[1740079334908,0.00543685,2759.9,2759.8,0.72453]
[1740079335309,0.72993685,2759.9,2759.8,0.72453]
[1740079335508,0.00543685,2759.9,2759.5,3.2078]
[1740079336010,0.72994685,2759.9,2759.5,3.2078]
[1740079336206,0.00543685,2759.9,2759.5,3.2078]
[1740079336410,0.72453,2759.8,2759.7,0.72454]
[1740079336611,1.29784685,2759.9,2759.8,0.72453]
[1740079337109,0.57333685,2759.9,2759.7,0.72455]
[1740079337318,0.57333685,2759.9,2759.5,3.2078]
[1740079337511,0.72453,2759.8,2759.5,3.2078]
[1740079337710,0.72453,2759.8,2759.7,0.72454]
[1740079338206,3.12833685,2759.9,2759.5,3.2078]
[1740079338409,3.12833685,2759.9,2759.7,0.72453]
[1740079338709,0.72453,2759.8,2759.7,0.72453]
[1740079339014,3.85285685,2759.9,2759.7,0.72453]
[1740079339218,3.85285685,2759.9,2759.5,3.2078]
[1740079339509,3.12833685,2759.9,2759.8,0.72453]
[1740079339813,3.85283685,2759.9,2759.8,0.72453]
[1740079340005,3.12833685,2759.9,2759.8,0.72453]
[1740079340210,0.00543685,2759.9,2759.8,0.72453]
[1740079340708,0.5839,2760.4,2759.8,3.2078]
[1740079340911,2.551,2760.5,2760.4,0.72437]
[1740079341312,2.551,2760.5,2759.9,43.14675]
[1740079341516,2.551,2760.5,2759.9,0.5355]
[1740079342012,3.22358305,2760.9,2759.9,0.5355]
[1740079342220,3.22358305,2760.9,2760.8,0.72426]
[1740079342412,0.01578305,2760.9,2760.8,0.72426]
[1740079343211,0.01578305,2760.9,2760.5,1.087]
[1740079343418,0.01578305,2760.9,2760.6,0.72431]
[1740079343616,0.74002305,2760.9,2760.5,1.81133]
[1740079343816,0.01578305,2760.9,2760.5,1.81133]
[1740079344214,0.01578305,2760.9,2760.8,0.72426]
[1740079345211,0.01578305,2760.9,2760.5,1.087]
[1740079345416,0.01578305,2760.9,2760.7,0.72427]
[1740079345617,0.74002305,2760.9,2760.6,0.7243]
[1740079346120,0.74003305,2760.9,2760.6,0.72431]
[1740079346516,0.01578305,2760.9,2760.7,0.72428]
[1740079346917,0.01578305,2760.9,2760.7,0.72427]
[1740079347118,0.01578305,2760.9,2760.8,0.72426]
[1740079347416,0.74003305,2760.9,2760.6,0.7243]
[1740079347920,0.01578305,2760.9,2760.7,0.72428]
[1740079348315,0.01578305,2760.9,2760.6,0.72431]
[1740079348517,0.74002305,2760.9,2760.6,0.72431]
[1740079349019,0.01578305,2760.9,2760.5,1.81133]
[1740079349221,0.01578305,2760.9,2760.5,1.087]
[1740079349520,0.72428,2760.8,2760.5,1.81132]
[1740079350022,0.72432,2760.6,2760.5,1.087]
[1740079350217,0.01578305,2760.9,2760.5,1.087]
[1740079350418,0.01578305,2760.9,2760.6,0.72431]